[Event "Anderssen Memorial Open-A 2020"]
[Site "Wroclaw"]
[Date "2020.08.04"]
[Round "5.10"]
[White "Borowski, Przemyslaw"]
[Black "Kowalczyk, Wojciech"]
[Result "1-0"]
[ECO "E73"]
[WhiteElo "1790"]
[BlackElo "1873"]
[Annotator "NA RC"]
[PlyCount "105"]
[EventDate "2020.08.01"]
[EventType "swiss"]
[EventCountry "POL"]
[SourceTitle "playchess.com"]
[Source "ChessBase"]
[SourceQuality "1"]
[TimeControl "40/5400+15:1800+30"]

{[%evp 15,105,17,4,0,0,-10,-16,-25,-12,-19,-9,-28,32767,32767,32767,-40,-39,-67,32767,32767,32767,32767,32767,-141,-162,-175,-40,-44,-79,-149,32767,-145,-129,-135,-92,-148,-147,-141,-138,-193,32767,-74,-66,-83,-60,-125,-132,-204,-188,-214,-72,-82,-94,-90,-104,-94,-97,-112,-18,-16,0,-102,0,32767,32767,32767,32767,32767,123,91,92,104,236,286,32767,35,32767,621,516,681,32767,585,32767,32767,32767,32767,644,32767,729,683,891,866]} 1. d4 {[%emt 0:00:00]} Nf6 {[%emt 0:00:00]} 2. c4 {[%emt 0:00:00]} g6 {[%emt 0:00:00]} 3. Nc3 {[%emt 0:00:00]} Bg7 {[%emt 0:00:00]} 4. e4 {[%emt 0:00:00]} d6 {[%emt 0:00:00]} 5. Be2 {[%emt 0:00:00]} O-O {[%emt 0:00:00]} 6. h3 {[%emt 0:00:00]} e5 {[%emt 0:06:24] E73: King's Indian: Averbakh Variation without 6...c5.} 7. d5 {[%emt 0:00:00]} Na6 {[%emt 0:00:49]} 8. g4 {[%emt 0:01:35]} Nc5 {[%emt 0:01:24]} 9. Qc2 {[%emt 0:00:00]} c6 {[%emt 0:03:18] [#]} 10. g5 $146 {[%emt 0:00:10]} ({Predecessor:} 10. b4 Na6 11. a3 cxd5 12. cxd5 Nc7 13. g5 Nfe8 14. h4 f5 15. gxf6 Nxf6 16. h5 Nxh5 17. Bxh5 gxh5 18. Rxh5 {0-1 (29) Laczay,I (1968)-Polevoy,N (2109) IECG email 2003}) 10... Ne8 {[%emt 0:01:50]} 11. b4 {[%emt 0:05:01]} Nd7 {[%emt 0:08:26]} 12. h4 {[%emt 0:04:31]} cxd5 {[%emt 0:10:36]} 13. Nxd5 {[%emt 0:04:46]} Nc7 {[%emt 0:01:20]} 14. Nxc7 {[%emt 0:02:13]} Qxc7 {[%emt 0:00:00]} 15. Be3 {[%emt 0:04:30]} a5 {[%emt 0:02:13]} 16. b5 {[%emt 0:00:54]} Rd8 {[%emt 0:05:32]} 17. O-O-O {[%emt 0:01:29]} Nf8 {[%emt 0:00:44]} 18. b6 {[%emt 0:08:42]} Qc6 {[%emt 0:04:13]} 19. c5 {[%emt 0:06:46]} Be6 {[%emt 0:06:35]} 20. cxd6 {[%emt 0:01:12]} Rxd6 {[%emt 0:06:03]} ({Black should play} 20... Qe8 $17 21. Kb1 Rac8) 21. Qxc6 {[%emt 0:00:14]} Rxc6+ {[%emt 0:00:01]} 22. Kb2 {[%emt 0:01:04]} ({White should play} 22. Kb1) 22... Rac8 {[%emt 0:01:22]} 23. Rc1 {[%emt 0:06:03]} Rxc1 {[%emt 0:08:26]} 24. Bxc1 {[%emt 0:00:00] [#]} Bxa2 $1 {[%emt 0:00:14]} 25. Rh3 {[%emt 0:10:11]} Be6 {[%emt 0:13:37]} 26. Ra3 {[%emt 0:00:30]} Nd7 {[%emt 0:02:38]} 27. Be3 {[%emt 0:00:01]} Rc6 {[%emt 0:04:29]} 28. Rxa5 {[%emt 0:04:47]} Nxb6 {[%emt 0:01:38]} 29. Ra7 {[%emt 0:00:35]} Bf8 {[%emt 0:01:42]} 30. Bb5 {[%emt 0:08:37]} (30. Nf3 $1 $15) 30... Nc4+ {[%emt 0:00:53]} 31. Kc3 {[%emt 0:08:18]} (31. Bxc4 $17 Rxc4 32. f3) 31... Rc8 {[%emt 0:00:23]} 32. Bxc4 {[%emt 0:01:55]} Rxc4+ {[%emt 0:00:00]} (32... Bxc4 $19 {and Black stays clearly on top.} 33. Kb2 Ba6) 33. Kd3 {[%emt 0:00:19]} b5 {[%emt 0:00:28]} 34. Nf3 {[%emt 0:00:10]} Bd6 {[%emt 0:01:02]} 35. Ra6 {[%emt 0:00:41]} Bc7 {[%emt 0:00:09]} 36. Nd2 {[%emt 0:00:27]} Rc1 {[%emt 0:01:19]} 37. Nf3 {[%emt 0:00:28]} Rc4 {[%emt 0:00:01]} 38. Nd2 $1 {[%emt 0:00:02]} Rc1 {[%emt 0:00:02]} ({Black should play} 38... Ra4 $17 39. Rc6 Ra3+ 40. Ke2 Bb8) 39. Nf3 {[%emt 0:00:00]} Rd1+ {[%emt 0:00:03]} 40. Bd2 {[%emt 0:00:00]} Bc4+ {[%emt 0:00:00]} 41. Kc2 {[%emt 0:17:37]} Rf1 {[%emt 0:23:40] [#]} (41... Be2 $11 {keeps the balance.} 42. Ra8+ Kg7) 42. Bb4 {[%emt 0:03:31]} (42. Be3 $142 $1) 42... Rxf2+ {[%emt 0:02:22]} 43. Nd2 {[%emt 0:00:07] [#]} h5 {[%emt 0:02:30]} (43... h6 $1 $16 {was called for.}) 44. Rc6 {[%emt 0:01:01] Double Attack} Rf4 {[%emt 0:03:17]} 45. Nxc4 $2 {[%emt 0:03:01]} ({Only move:} 45. Rxc7 $18 f5 46. gxf6 Rxf6 47. Be7) 45... bxc4 {[%emt 0:00:49]} 46. Rxc7 {[%emt 0:00:34]} f5 {[%emt 0:01:28]} 47. gxf6 {[%emt 0:00:34]} Rxf6 {[%emt 0:00:22]} 48. Be7 {[%emt 0:00:48]} Rf7 {[%emt 0:01:01]} 49. Rc8+ {[%emt 0:00:07]} Kg7 {[%emt 0:00:10]} 50. Bg5 {[%emt 0:00:10]} Rf2+ {[%emt 0:00:21]} 51. Kc3 {[%emt 0:00:14]} Re2 {[%emt 0:00:55]} 52. Rxc4 {[%emt 0:01:29]} Re1 $18 {[%emt 0:00:22]} 53. Rc7+ {[%emt 0:00:39]} 1-0

[Event "Anderssen Memorial Open-A 2020"]
[Site "Wroclaw"]
[Date "2020.08.05"]
[Round "6.9"]
[White "Bojczewski, Mateusz"]
[Black "Vanduyfhuys, Daria"]
[Result "1-0"]
[ECO "B33"]
[WhiteElo "1886"]
[BlackElo "1985"]
[Annotator "ChessBase"]
[PlyCount "77"]
[EventDate "2020.08.01"]
[EventType "swiss"]
[EventCountry "POL"]
[SourceTitle "playchess.com"]
[Source "ChessBase"]
[SourceQuality "1"]
[TimeControl "40/5400+15:1800+30"]

1. e4 {[%emt 0:00:00]} c5 {[%emt 0:00:00]} 2. Nf3 {[%emt 0:00:00]} Nc6 {[%emt 0:00:00]} 3. d4 {[%emt 0:00:00]} cxd4 {[%emt 0:00:00]} 4. Nxd4 {[%emt 0:00:00]} Nf6 {[%emt 0:00:00]} 5. Nc3 {[%emt 0:00:00]} e5 {[%emt 0:00:00]} 6. Ndb5 {[%emt 0:00:00]} d6 {[%emt 0:00:00]} 7. Bg5 {[%emt 0:00:00]} a6 {[%emt 0:00:00]} 8. Na3 {[%emt 0:00:00]} b5 {[%emt 0:00:00]} 9. Bxf6 {[%emt 0:00:00]} gxf6 {[%emt 0:00:00]} 10. Nd5 {[%emt 0:00:00]} f5 {[%emt 0:00:32]} 11. g3 {[%emt 0:00:00]} fxe4 {[%emt 0:08:04]} 12. Bg2 {[%emt 0:00:00]} Bf5 {[%emt 0:01:11]} 13. O-O {[%emt 0:00:00]} Bg7 {[%emt 0:01:10]} 14. Re1 {[%emt 0:00:00]} O-O {[%emt 0:00:27]} 15. c3 {[%emt 0:00:00]} Bg6 {[%emt 0:09:33]} 16. Bxe4 {[%emt 0:00:00]} Bxe4 {[%emt 0:00:19]} 17. Rxe4 {[%emt 0:00:07]} f5 {[%emt 0:01:20]} 18. Re1 {[%emt 0:08:24]} Rb8 {[%emt 0:15:31]} 19. Nc2 {[%emt 0:00:39]} Qd7 {[%emt 0:02:22]} 20. f4 {[%emt 0:08:01]} Qa7+ {[%emt 0:08:01]} 21. Kh1 {[%emt 0:01:01]} Qb7 {[%emt 0:02:32]} 22. Kg1 {[%emt 0:08:57]} Kh8 {[%emt 0:09:13]} 23. a3 {[%emt 0:04:59]} a5 {[%emt 0:00:44]} 24. Nce3 {[%emt 0:01:19]} b4 {[%emt 0:01:51]} 25. Qh5 {[%emt 0:02:52]} bxc3 {[%emt 0:03:57]} 26. bxc3 {[%emt 0:00:39]} exf4 {[%emt 0:05:02]} 27. Nxf4 {[%emt 0:00:49]} Ne5 {[%emt 0:00:38]} 28. Ned5 {[%emt 0:00:44]} Rfc8 {[%emt 0:06:29]} 29. Qxf5 {[%emt 0:12:34]} Nf3+ {[%emt 0:01:22]} 30. Kg2 {[%emt 0:00:30]} Nxe1+ {[%emt 0:00:20]} 31. Rxe1 {[%emt 0:00:00]} Re8 {[%emt 0:02:57]} 32. Ne6 {[%emt 0:10:34]} Qb2+ {[%emt 0:02:46]} 33. Kh3 {[%emt 0:00:21]} Qd2 {[%emt 0:00:46]} 34. Ng5 {[%emt 0:00:39]} Qxg5 {[%emt 0:06:12]} 35. Rxe8+ {[%emt 0:00:08]} Rxe8 {[%emt 0:00:00]} 36. Qxg5 {[%emt 0:00:00]} Be5 {[%emt 0:00:00]} 37. Nf6 {[%emt 0:00:43]} Rf8 {[%emt 0:01:03]} 38. Nd7 {[%emt 0:00:00]} Rg8 {[%emt 0:00:00]} 39. Nxe5 {[%emt 0:00:04]} 1-0

[Event "Anderssen Memorial Open-A 2020"]
[Site "Wroclaw"]
[Date "2020.08.07"]
[Round "8.1"]
[White "Barski, Radoslaw"]
[Black "Kopylov, Michael"]
[Result "1-0"]
[ECO "C07"]
[WhiteElo "2444"]
[BlackElo "2407"]
[Annotator "ChessBase"]
[PlyCount "85"]
[EventDate "2020.08.01"]
[EventType "swiss"]
[EventCountry "POL"]
[SourceTitle "playchess.com"]
[Source "ChessBase"]
[SourceQuality "1"]
[TimeControl "40/5400+15:1800+30"]

1. e4 {[%emt 0:00:00]} e6 {[%emt 0:00:00]} 2. d4 {[%emt 0:00:00]} d5 {[%emt 0:00:00]} 3. Nd2 {[%emt 0:00:02]} c5 {[%emt 0:00:00]} 4. Ngf3 {[%emt 0:00:00]} cxd4 {[%emt 0:00:00]} 5. Nxd4 {[%emt 0:00:00]} Nc6 {[%emt 0:00:00]} 6. Bb5 {[%emt 0:00:00]} Bd7 {[%emt 0:00:00]} 7. Nxc6 {[%emt 0:00:00]} bxc6 {[%emt 0:00:00]} 8. Bd3 {[%emt 0:00:00]} Bd6 {[%emt 0:01:12]} 9. O-O {[%emt 0:00:42]} Nf6 {[%emt 0:00:07]} 10. Re1 {[%emt 0:11:49]} Qc7 {[%emt 0:00:53]} 11. h3 {[%emt 0:00:00]} O-O {[%emt 0:02:40]} 12. c4 {[%emt 0:11:33]} Rae8 {[%emt 0:18:34]} 13. c5 {[%emt 0:03:51]} Bh2+ {[%emt 0:04:19]} 14. Kh1 {[%emt 0:00:01]} Bf4 {[%emt 0:00:07]} 15. Nf3 {[%emt 0:03:30]} Bxc1 {[%emt 0:04:39]} 16. Rxc1 {[%emt 0:04:16]} e5 {[%emt 0:00:40]} 17. b4 {[%emt 0:13:39]} dxe4 {[%emt 0:12:07]} 18. Bxe4 {[%emt 0:00:00]} Nxe4 {[%emt 0:00:00]} 19. Rxe4 {[%emt 0:00:00]} f6 {[%emt 0:00:00]} 20. Re2 {[%emt 0:08:39]} Be6 {[%emt 0:05:19]} 21. Rd2 {[%emt 0:03:30]} Rd8 {[%emt 0:02:00]} 22. a4 {[%emt 0:00:37]} Bd5 {[%emt 0:12:24]} 23. b5 {[%emt 0:00:55]} Qa5 {[%emt 0:00:03]} 24. bxc6 {[%emt 0:00:03]} Bxc6 {[%emt 0:04:47]} 25. Rd6 {[%emt 0:09:47]} Kh8 {[%emt 0:05:41]} 26. Nh4 {[%emt 0:03:08]} Qc7 {[%emt 0:15:09]} 27. Nf5 Rxd6 {[%emt 0:01:31]} 28. cxd6 {[%emt 0:13:43]} Qd7 {[%emt 0:00:00]} 29. Qd3 {[%emt 0:02:58]} Rc8 {[%emt 0:03:11]} 30. Kh2 {[%emt 0:00:20]} e4 {[%emt 0:00:50]} 31. Qd4 {[%emt 0:00:13]} Qxf5 {[%emt 0:00:55]} 32. Rxc6 {[%emt 0:00:00]} Rd8 {[%emt 0:00:13]} 33. Qxa7 {[%emt 0:03:08]} h6 {[%emt 0:00:15]} 34. Qd4 {[%emt 0:00:08]} Rd7 {[%emt 0:00:18]} 35. g3 {[%emt 0:00:15]} Kg8 36. a5 {[%emt 0:01:16]} Qxa5 {[%emt 0:00:26]} 37. Qxe4 {[%emt 0:00:00]} Kf7 38. Qc4+ Kf8 39. Ra6 Qd8 40. Qd5 Qe8 41. Ra8 Rd8 42. d7 Qe7 43. Qa5 1-0

[Event "Anderssen Memorial Open-A 2020"]
[Site "Wroclaw"]
[Date "2020.08.07"]
[Round "8.2"]
[White "Kopylov, Daniel"]
[Black "Sieciechowicz, Marcin"]
[Result "1/2-1/2"]
[ECO "C01"]
[WhiteElo "2348"]
[BlackElo "2372"]
[Annotator "ChessBase"]
[PlyCount "96"]
[EventDate "2020.08.01"]
[EventType "swiss"]
[EventCountry "POL"]
[SourceTitle "playchess.com"]
[Source "ChessBase"]
[SourceQuality "1"]
[TimeControl "40/5400+15:1800+30"]

1. e4 {[%emt 0:01:27]} e6 {[%emt 0:01:02]} 2. d4 {[%emt 0:00:00]} d5 {[%emt 0:00:00]} 3. exd5 {[%emt 0:00:00]} exd5 {[%emt 0:00:00]} 4. Nf3 {[%emt 0:00:00]} Nf6 {[%emt 0:00:14]} 5. Bd3 {[%emt 0:00:00]} Bd6 {[%emt 0:00:00]} 6. Qe2+ {[%emt 0:00:02]} Qe7 {[%emt 0:00:18]} 7. Qxe7+ {[%emt 0:00:00]} Kxe7 {[%emt 0:04:11]} 8. O-O {[%emt 0:00:22]} Re8 {[%emt 0:00:01]} 9. Re1+ {[%emt 0:00:34]} Kf8 {[%emt 0:00:13]} 10. Rxe8+ {[%emt 0:00:20]} Kxe8 {[%emt 0:00:19]} 11. Nc3 {[%emt 0:00:22]} c6 {[%emt 0:01:37]} 12. Bd2 {[%emt 0:00:39]} Nbd7 {[%emt 0:02:00]} 13. Re1+ {[%emt 0:00:57]} Kf8 {[%emt 0:00:22]} 14. h3 {[%emt 0:01:25]} h6 {[%emt 0:03:13]} 15. Ne5 {[%emt 0:07:06]} a6 {[%emt 0:03:49]} 16. g4 {[%emt 0:07:22]} c5 {[%emt 0:05:31]} 17. Bf4 {[%emt 0:13:34]} Be7 {[%emt 0:02:16]} 18. Nxd7+ {[%emt 0:01:49]} Bxd7 {[%emt 0:00:00]} 19. Be5 {[%emt 0:01:15]} c4 {[%emt 0:05:14]} 20. Bf1 {[%emt 0:02:25]} Bc6 {[%emt 0:01:10]} 21. Bg2 {[%emt 0:04:09]} Rd8 {[%emt 0:00:30]} 22. Ne2 {[%emt 0:07:35]} Ne8 {[%emt 0:05:17]} 23. Ng3 {[%emt 0:06:31]} f6 {[%emt 0:04:13]} 24. Bf4 {[%emt 0:01:00]} Bd6 {[%emt 0:01:39]} 25. Bxd6+ {[%emt 0:05:12]} Nxd6 {[%emt 0:02:34]} 26. Nh5 {[%emt 0:01:05]} Kf7 {[%emt 0:04:09]} 27. c3 {[%emt 0:07:30]} Re8 {[%emt 0:02:41]} 28. Rxe8 {[%emt 0:05:48]} Nxe8 {[%emt 0:00:00]} 29. Ng3 {[%emt 0:01:07]} Nd6 {[%emt 0:05:58]} 30. Nf1 {[%emt 0:01:21]} g5 {[%emt 0:04:57]} 31. Ne3 {[%emt 0:01:19]} Ke6 {[%emt 0:00:00]} 32. h4 {[%emt 0:02:01]} Ne8 {[%emt 0:07:16]} 33. Kh2 {[%emt 0:01:08]} Ng7 {[%emt 0:00:32]} 34. Kg3 {[%emt 0:04:11]} Kd6 {[%emt 0:04:26]} 35. f4 {[%emt 0:00:31]} b5 {[%emt 0:02:38]} 36. Bf3 {[%emt 0:02:25]} a5 {[%emt 0:02:58]} 37. Bd1 {[%emt 0:00:04]} Bd7 {[%emt 0:02:35]} 38. a3 {[%emt 0:00:58]} Bc8 {[%emt 0:02:07]} 39. Bc2 {[%emt 0:01:24]} Bd7 {[%emt 0:02:36]} 40. Bg6 {[%emt 0:00:00]} Be6 {[%emt 0:00:00]} 41. Nc2 {[%emt 0:19:16]} Bd7 {[%emt 0:19:35]} 42. Ne1 {[%emt 0:03:40]} Ne6 {[%emt 0:03:46]} 43. fxg5 {[%emt 0:01:59]} fxg5 {[%emt 0:00:05]} 44. Nf3 {[%emt 0:01:37]} Ke7 {[%emt 0:03:54]} 45. Bf5 {[%emt 0:08:05]} Kf6 {[%emt 0:00:26]} 46. Ne5 Be8 {[%emt 0:00:55]} 47. Bxe6 {[%emt 0:02:24]} Kxe6 {[%emt 0:00:42]} 48. h5 {[%emt 0:00:56]} a4 {[%emt 0:00:54]} 1/2-1/2

[Event "Anderssen Memorial Open-A 2020"]
[Site "Wroclaw"]
[Date "2020.08.07"]
[Round "8.3"]
[White "Cukrowski, Filip"]
[Black "Mondrzycki, Bartlomiej"]
[Result "1-0"]
[ECO "B66"]
[WhiteElo "2419"]
[BlackElo "2140"]
[Annotator "ChessBase"]
[PlyCount "93"]
[EventDate "2020.08.01"]
[EventType "swiss"]
[EventCountry "POL"]
[SourceTitle "playchess.com"]
[Source "ChessBase"]
[SourceQuality "1"]
[TimeControl "40/5400+15:1800+30"]

1. e4 {[%emt 0:03:12]} c5 {[%emt 0:00:00]} 2. Nf3 {[%emt 0:00:00]} d6 {[%emt 0:00:00]} 3. d4 {[%emt 0:00:00]} cxd4 {[%emt 0:00:00]} 4. Nxd4 {[%emt 0:00:00]} Nf6 {[%emt 0:00:00]} 5. Nc3 {[%emt 0:00:00]} Nc6 {[%emt 0:00:00]} 6. Bg5 {[%emt 0:00:00]} e6 {[%emt 0:00:00]} 7. Qd2 {[%emt 0:01:24]} a6 {[%emt 0:00:00]} 8. Be2 {[%emt 0:05:59]} Bd7 {[%emt 0:02:33]} 9. f4 {[%emt 0:06:40]} Be7 {[%emt 0:27:19]} 10. O-O-O {[%emt 0:08:17]} O-O {[%emt 0:02:54]} 11. Nf3 {[%emt 0:06:25]} Qa5 {[%emt 0:15:48]} 12. Kb1 {[%emt 0:17:25]} Rfd8 {[%emt 0:00:46]} 13. Bd3 {[%emt 0:08:51]} Rac8 {[%emt 0:08:58]} 14. Rhe1 {[%emt 0:02:42]} Nb4 {[%emt 0:11:39]} 15. a3 {[%emt 0:00:00]} Nxd3 {[%emt 0:00:00]} 16. cxd3 {[%emt 0:00:00]} Kf8 {[%emt 0:09:30]} 17. d4 {[%emt 0:05:08]} d5 {[%emt 0:03:47]} 18. e5 {[%emt 0:00:36]} Ng8 {[%emt 0:00:00]} 19. Rc1 {[%emt 0:01:14]} h6 {[%emt 0:02:45]} 20. Bxe7+ {[%emt 0:00:00]} Nxe7 {[%emt 0:00:00]} 21. Qd3 {[%emt 0:00:57]} Kg8 {[%emt 0:00:50]} 22. g4 {[%emt 0:01:54]} b5 {[%emt 0:01:55]} 23. Na2 {[%emt 0:00:35]} Qb6 {[%emt 0:01:09]} 24. Rxc8 {[%emt 0:00:25]} Rxc8 {[%emt 0:00:00]} 25. Rc1 {[%emt 0:01:25]} Rxc1+ {[%emt 0:00:00]} 26. Kxc1 {[%emt 0:00:50]} b4 {[%emt 0:02:58]} 27. Nxb4 {[%emt 0:02:09]} Bb5 {[%emt 0:00:00]} 28. Qe3 {[%emt 0:02:36]} a5 {[%emt 0:00:21]} 29. Nd3 {[%emt 0:01:35]} Nc6 {[%emt 0:00:23]} 30. Nc5 {[%emt 0:00:20]} Bf1 {[%emt 0:00:16]} 31. Nd2 {[%emt 0:02:01]} Bg2 {[%emt 0:00:00]} 32. f5 {[%emt 0:00:27]} Ne7 {[%emt 0:02:27]} 33. fxe6 {[%emt 0:01:52]} fxe6 {[%emt 0:00:00]} 34. Qe2 {[%emt 0:03:31]} Bh1 {[%emt 0:00:02]} 35. Qf1 {[%emt 0:00:23]} Be4 {[%emt 0:01:08]} 36. Ndxe4 {[%emt 0:00:00]} dxe4 {[%emt 0:00:00]} 37. Qe2 {[%emt 0:00:00]} Qc6 {[%emt 0:01:09]} 38. Kd2 {[%emt 0:04:18]} Qb6 {[%emt 0:00:09]} 39. Kc2 {[%emt 0:00:07]} Nc6 {[%emt 0:00:26]} 40. Qxe4 {[%emt 0:00:00]} Qb5 {[%emt 0:00:00]} 41. Qd3 {[%emt 0:15:19]} Qb8 {[%emt 0:15:48]} 42. Qc4 {[%emt 0:02:09]} Kh8 {[%emt 0:01:35]} 43. Nxe6 {[%emt 0:00:35]} Qc8 {[%emt 0:00:48]} 44. Kb1 {[%emt 0:00:15]} Qd7 {[%emt 0:00:56]} 45. h3 {[%emt 0:03:27]} a4 {[%emt 0:00:01]} 46. Nc5 {[%emt 0:04:30]} Qd8 {[%emt 0:00:02]} 47. e6 {[%emt 0:01:15]} 1-0

[Event "Anderssen Memorial Open-A 2020"]
[Site "Wroclaw"]
[Date "2020.08.07"]
[Round "8.4"]
[White "Jankowiak, Tomasz"]
[Black "Zwahr, Paul"]
[Result "1-0"]
[ECO "B51"]
[WhiteElo "2115"]
[BlackElo "2277"]
[Annotator "ChessBase"]
[PlyCount "79"]
[EventDate "2020.08.01"]
[EventType "swiss"]
[EventCountry "POL"]
[SourceTitle "playchess.com"]
[Source "ChessBase"]
[SourceQuality "1"]
[TimeControl "40/5400+15:1800+30"]

1. e4 {[%emt 0:00:00]} c5 {[%emt 0:00:00]} 2. Nf3 {[%emt 0:00:00]} d6 {[%emt 0:00:00]} 3. Bb5+ {[%emt 0:00:00]} Nc6 {[%emt 0:00:00]} 4. O-O {[%emt 0:00:00]} Bd7 {[%emt 0:00:00]} 5. Re1 {[%emt 0:00:00]} Nf6 {[%emt 0:00:00]} 6. c3 {[%emt 0:00:00]} a6 {[%emt 0:00:00]} 7. Bc4 {[%emt 0:00:00]} Bg4 {[%emt 0:00:11]} 8. d4 {[%emt 0:00:00]} Bxf3 {[%emt 0:00:12]} 9. gxf3 {[%emt 0:00:00]} e6 {[%emt 0:00:23]} 10. Be3 {[%emt 0:22:26]} cxd4 {[%emt 0:05:03]} 11. cxd4 {[%emt 0:01:09]} d5 {[%emt 0:00:14]} 12. Bd3 {[%emt 0:01:21]} Be7 {[%emt 0:01:43]} 13. Nc3 {[%emt 0:12:08]} O-O {[%emt 0:01:00]} 14. Rc1 {[%emt 0:00:00]} g6 {[%emt 0:07:32]} 15. Bb1 {[%emt 0:09:01]} Rc8 {[%emt 0:06:20]} 16. Na4 {[%emt 0:07:33]} Nd7 {[%emt 0:23:08]} 17. exd5 {[%emt 0:10:51]} exd5 {[%emt 0:00:05]} 18. Qb3 {[%emt 0:00:00]} Bb4 {[%emt 0:23:53]} 19. Red1 {[%emt 0:00:44]} b5 {[%emt 0:04:14]} 20. Qxd5 {[%emt 0:00:57]} Ne7 {[%emt 0:03:32]} 21. Qb3 {[%emt 0:00:21]} Rxc1 {[%emt 0:00:39]} 22. Rxc1 {[%emt 0:00:22]} Bd6 {[%emt 0:00:33]} 23. Nc5 {[%emt 0:01:05]} Nb6 {[%emt 0:05:24]} 24. Bh6 {[%emt 0:12:35]} Ned5 {[%emt 0:04:33]} 25. Ne4 {[%emt 0:02:11]} Qh4 {[%emt 0:02:52]} 26. Bxf8 {[%emt 0:00:47]} Qxh2+ {[%emt 0:00:48]} 27. Kf1 {[%emt 0:00:00]} Bxf8 {[%emt 0:02:39]} 28. Ke2 {[%emt 0:02:24]} Bh6 {[%emt 0:00:36]} 29. Re1 {[%emt 0:03:37]} Nc4 {[%emt 0:00:32]} 30. a4 {[%emt 0:01:22]} Qb8 {[%emt 0:00:49]} 31. axb5 {[%emt 0:01:09]} axb5 {[%emt 0:00:00]} 32. Bd3 {[%emt 0:00:03]} Nf4+ {[%emt 0:00:00]} 33. Kf1 {[%emt 0:00:00]} Qc8 {[%emt 0:00:00]} 34. Kg1 {[%emt 0:02:06]} Nh3+ {[%emt 0:00:48]} 35. Kh1 {[%emt 0:00:42]} Nf4 {[%emt 0:00:24]} 36. Nf6+ {[%emt 0:02:56]} Kg7 {[%emt 0:00:00]} 37. Ng4 {[%emt 0:00:00]} Qc6 {[%emt 0:00:33]} 38. Bxc4 {[%emt 0:00:15]} bxc4 {[%emt 0:00:00]} 39. d5 {[%emt 0:00:52]} Qc5 {[%emt 0:00:34]} 40. Qc3+ {[%emt 0:00:00]} 1-0

[Event "Anderssen Memorial Open-A 2020"]
[Site "Wroclaw"]
[Date "2020.08.07"]
[Round "8.5"]
[White "Chmiel, Marcin"]
[Black "Piekielny, Pawel"]
[Result "0-1"]
[ECO "A15"]
[WhiteElo "2267"]
[BlackElo "2099"]
[Annotator "ChessBase"]
[PlyCount "66"]
[EventDate "2020.08.01"]
[EventType "swiss"]
[EventCountry "POL"]
[SourceTitle "playchess.com"]
[Source "ChessBase"]
[SourceQuality "1"]
[TimeControl "40/5400+15:1800+30"]

1. c4 {[%emt 0:00:00]} Nf6 {[%emt 0:00:00]} 2. g3 {[%emt 0:00:00]} c5 {[%emt 0:00:00]} 3. Bg2 {[%emt 0:00:00]} d5 {[%emt 0:00:00]} 4. cxd5 {[%emt 0:00:00]} Nxd5 {[%emt 0:00:00]} 5. Nc3 {[%emt 0:00:00]} Nxc3 {[%emt 0:00:00]} 6. bxc3 {[%emt 0:00:00]} e5 {[%emt 0:00:00]} 7. Nf3 {[%emt 0:02:14]} Nc6 {[%emt 0:00:00]} 8. O-O {[%emt 0:01:17]} Be7 {[%emt 0:00:00]} 9. Rb1 {[%emt 0:02:40]} O-O {[%emt 0:00:00]} 10. d3 {[%emt 0:00:28]} Rb8 {[%emt 0:00:29]} 11. Nd2 {[%emt 0:03:28]} Be6 {[%emt 0:01:03]} 12. a4 {[%emt 0:01:28]} Bd5 {[%emt 0:00:33]} 13. Bxd5 {[%emt 0:02:04]} Qxd5 {[%emt 0:00:00]} 14. Qb3 {[%emt 0:00:05]} Qd7 {[%emt 0:02:05]} 15. Nc4 {[%emt 0:06:12]} Kh8 {[%emt 0:04:19]} 16. f4 {[%emt 0:01:20]} Qg4 {[%emt 0:09:45]} 17. Rf3 {[%emt 0:06:51]} f6 {[%emt 0:02:17]} 18. Ne3 {[%emt 0:05:23]} Qc8 {[%emt 0:04:06]} 19. Nd5 {[%emt 0:01:27]} Bd6 {[%emt 0:00:14]} 20. Qc4 {[%emt 0:12:13]} Re8 {[%emt 0:06:09]} 21. e4 {[%emt 0:03:03]} f5 {[%emt 0:18:52]} 22. Be3 {[%emt 0:07:39]} fxe4 {[%emt 0:07:56]} 23. dxe4 {[%emt 0:00:00]} exf4 {[%emt 0:00:00]} 24. gxf4 {[%emt 0:07:29]} Qe6 {[%emt 0:00:11]} 25. e5 {[%emt 0:08:00]} Bxe5 {[%emt 0:03:42]} 26. fxe5 {[%emt 0:01:40]} Nxe5 {[%emt 0:02:00]} 27. Qxc5 {[%emt 0:11:08]} Nxf3+ {[%emt 0:00:49]} 28. Kf2 {[%emt 0:00:00]} Qf5 {[%emt 0:00:59]} 29. Rb4 {[%emt 0:04:12]} Ne5+ {[%emt 0:00:05]} 30. Rf4 {[%emt 0:00:53]} Nd3+ {[%emt 0:00:02]} 31. Kg3 {[%emt 0:01:13]} Qg6+ {[%emt 0:00:36]} 32. Rg4 {[%emt 0:00:01]} Nxc5 {[%emt 0:00:00]} 33. Rxg6 {[%emt 0:00:07]} Rxe3+ 0-1

[Event "Anderssen Memorial Open-A 2020"]
[Site "Wroclaw"]
[Date "2020.08.07"]
[Round "8.6"]
[White "Kanicki, Krzysztof"]
[Black "Burian, Simon"]
[Result "1/2-1/2"]
[ECO "B90"]
[WhiteElo "2163"]
[BlackElo "2073"]
[Annotator "ChessBase"]
[PlyCount "75"]
[EventDate "2020.08.01"]
[EventType "swiss"]
[EventCountry "POL"]
[SourceTitle "playchess.com"]
[Source "ChessBase"]
[SourceQuality "1"]
[TimeControl "40/5400+15:1800+30"]

1. e4 {[%emt 0:00:00]} c5 {[%emt 0:00:00]} 2. Nf3 {[%emt 0:00:00]} d6 {[%emt 0:00:00]} 3. d4 {[%emt 0:00:00]} cxd4 {[%emt 0:00:00]} 4. Nxd4 {[%emt 0:00:00]} Nf6 {[%emt 0:00:00]} 5. Nc3 {[%emt 0:00:00]} a6 {[%emt 0:00:00]} 6. Be3 {[%emt 0:00:00]} e5 {[%emt 0:00:00]} 7. Nb3 {[%emt 0:00:00]} Be7 {[%emt 0:00:00]} 8. f3 {[%emt 0:00:00]} Be6 {[%emt 0:00:00]} 9. Qd2 {[%emt 0:00:00]} O-O {[%emt 0:00:00]} 10. O-O-O {[%emt 0:00:00]} a5 {[%emt 0:00:00]} 11. a4 {[%emt 0:00:00]} Nc6 {[%emt 0:00:00]} 12. g4 {[%emt 0:00:27]} Nb4 {[%emt 0:00:00]} 13. Kb1 {[%emt 0:00:28]} Rc8 {[%emt 0:00:00]} 14. g5 {[%emt 0:01:26]} Nd7 {[%emt 0:00:00]} 15. f4 {[%emt 0:14:49]} exf4 {[%emt 0:10:35]} 16. Bxf4 {[%emt 0:00:00]} Ne5 {[%emt 0:02:28]} 17. Nd4 {[%emt 0:02:53]} Bg4 {[%emt 0:06:19]} 18. Rc1 {[%emt 0:02:11]} Nf3 {[%emt 0:09:15]} 19. Nxf3 {[%emt 0:07:01]} Bxf3 {[%emt 0:00:22]} 20. Rg1 {[%emt 0:00:32]} d5 {[%emt 0:07:01]} 21. exd5 {[%emt 0:02:20]} Nxd5 {[%emt 0:02:16]} 22. Nxd5 {[%emt 0:01:02]} Bxd5 {[%emt 0:01:06]} 23. Bg2 {[%emt 0:11:21]} Bxg2 {[%emt 0:00:48]} 24. Rxg2 {[%emt 0:00:18]} Rc4 {[%emt 0:06:50]} 25. Qxd8 {[%emt 0:09:38]} Rxd8 {[%emt 0:00:25]} 26. Bd2 {[%emt 0:18:03]} Bb4 {[%emt 0:04:38]} 27. Bxb4 {[%emt 0:01:23]} Rxb4 {[%emt 0:00:00]} 28. b3 {[%emt 0:00:04]} b5 {[%emt 0:00:33]} 29. axb5 {[%emt 0:00:19]} Rxb5 {[%emt 0:00:00]} 30. Kb2 {[%emt 0:02:10]} g6 {[%emt 0:03:14]} 31. Ra1 {[%emt 0:03:27]} h6 {[%emt 0:04:30]} 32. gxh6 {[%emt 0:02:56]} Kh7 {[%emt 0:00:18]} 33. c4 {[%emt 0:02:16]} Re5 {[%emt 0:05:32]} 34. Rc2 {[%emt 0:00:14]} Rc8 {[%emt 0:00:30]} 35. Kc3 {[%emt 0:04:28]} Rd8 {[%emt 0:04:37]} 36. Kb2 {[%emt 0:02:17]} Rc8 {[%emt 0:00:45]} 37. Kc3 {[%emt 0:00:00]} Rd8 {[%emt 0:00:00]} 38. Kb2 {[%emt 0:00:43]} 1/2-1/2